[Event "*** Titled Tuesday Blitz"]
[Site "Chess.com"]
[Date "2020.04.21"]
[Round "5"]
[White "gvanna"]
[Black "BaMBoMaTTo"]
[Result "1-0"]
[WhiteElo "2463"]
[BlackElo "2691"]
[TimeControl "180+1"]
[EndTime "10:58:03 PDT"]
[Termination "gvanna won by resignation"]

1. e4 {[%clk 0:03:00.9]} 1... c5 {[%clk 0:02:58.9]} 2. Nf3 {[%clk 0:03:00.7]}
2... d6 {[%clk 0:02:59.4]} 3. d4 {[%clk 0:03:00.2]} 3... cxd4 {[%clk 0:03:00.3]}
4. Nxd4 {[%clk 0:03:00.8]} 4... Nf6 {[%clk 0:03:00.7]} 5. Nc3 {[%clk 0:03:00.9]}
5... a6 {[%clk 0:03:01.2]} 6. Be3 {[%clk 0:03:00]} 6... e5 {[%clk 0:03:01.1]} 7.
Nb3 {[%clk 0:02:59.5]} 7... Be6 {[%clk 0:03:00.2]} 8. f3 {[%clk 0:02:58.7]} 8...
h5 {[%clk 0:02:52.9]} 9. Qd2 {[%clk 0:02:57.7]} 9... Nbd7 {[%clk 0:02:43.2]} 10.
O-O-O {[%clk 0:02:56.9]} 10... b5 {[%clk 0:02:41.3]} 11. h3 {[%clk 0:02:53.3]}
11... Rc8 {[%clk 0:02:38.5]} 12. Kb1 {[%clk 0:02:46.5]} 12... Qc7 {[%clk
0:02:37.5]} 13. Be2 {[%clk 0:02:43.6]} 13... h4 {[%clk 0:02:35.7]} 14. f4 {[%clk
0:02:39.3]} 14... Be7 {[%clk 0:02:34.5]} 15. f5 {[%clk 0:02:35.2]} 15... Bc4
{[%clk 0:02:34.2]} 16. Rhg1 {[%clk 0:02:27.9]} 16... b4 {[%clk 0:02:28.8]} 17.
Nd5 {[%clk 0:02:22.2]} 17... Nxd5 {[%clk 0:02:11.2]} 18. exd5 {[%clk 0:02:20.4]}
18... Nf6 {[%clk 0:02:08.1]} 19. Bf3 {[%clk 0:02:05.5]} 19... e4 {[%clk
0:02:04.5]} 20. Be2 {[%clk 0:02:03.4]} 20... Nxd5 {[%clk 0:01:37.6]} 21. Bxc4
{[%clk 0:02:02.3]} 21... Nxe3 {[%clk 0:01:37.8]} 22. Bxf7+ {[%clk 0:01:48]}
22... Kxf7 {[%clk 0:01:38.7]} 23. Qxe3 {[%clk 0:01:48.3]} 23... Qxc2+ {[%clk
0:01:39]} 24. Ka1 {[%clk 0:01:48.7]} 24... Bf6 {[%clk 0:01:39.3]} 25. Nd4 {[%clk
0:01:40.7]} 25... Qc4 {[%clk 0:01:30.2]} 26. Qxe4 {[%clk 0:01:35.4]} 26... Rhe8
{[%clk 0:01:27.6]} 27. Qg4 {[%clk 0:01:18]} 27... Kg8 {[%clk 0:00:29.7]} 28. Kb1
{[%clk 0:00:46.2]} 28... Re3 {[%clk 0:00:24.9]} 29. Qf4 {[%clk 0:00:33.9]} 29...
Rce8 {[%clk 0:00:18.8]} 30. Qxd6 {[%clk 0:00:31.8]} 30... Rd3 {[%clk 0:00:19.1]}
31. Qd7 {[%clk 0:00:18.9]} 31... Rd8 {[%clk 0:00:16.3]} 32. Qxd8+ {[%clk
0:00:03.5]} 32... Bxd8 {[%clk 0:00:17.2]} 33. Ne6 {[%clk 0:00:03.7]} 33... Qd4
{[%clk 0:00:18.1]} 34. Nxd4 {[%clk 0:00:02.5]} 34... Re3 {[%clk 0:00:18.7]} 35.
Rge1 {[%clk 0:00:01.9]} 35... Rg3 {[%clk 0:00:19]} 36. Re8+ {[%clk 0:00:01.8]}
36... Kf7 {[%clk 0:00:19.9]} 37. Rxd8 {[%clk 0:00:02.4]} 37... Rxg2 {[%clk
0:00:20.8]} 38. Ra8 {[%clk 0:00:03.1]} 38... Kf6 {[%clk 0:00:20.9]} 39. Ra7
{[%clk 0:00:03.7]} 39... Rg3 {[%clk 0:00:21.8]} 40. Nb3 {[%clk 0:00:03.9]} 40...
Rxh3 {[%clk 0:00:22]} 41. Rxa6+ {[%clk 0:00:04.6]} 41... Kxf5 {[%clk 0:00:22.3]}
42. Rg1 {[%clk 0:00:03.6]} 42... Rg3 {[%clk 0:00:21.3]} 43. Ra5+ {[%clk
0:00:03.4]} 43... Kf4 {[%clk 0:00:19.6]} 44. Rh1 {[%clk 0:00:03.9]} 44... g5
{[%clk 0:00:19.5]} 45. Rb5 {[%clk 0:00:03.7]} 45... Kf3 {[%clk 0:00:18.4]} 46.
Rxb4 {[%clk 0:00:04.3]} 46... Kg2 {[%clk 0:00:19.3]} 47. Rc1 {[%clk 0:00:03.6]}
47... h3 {[%clk 0:00:19.8]} 48. Nd4 {[%clk 0:00:03.3]} 48... h2 {[%clk
0:00:19.8]} 49. Ne2 {[%clk 0:00:03.4]} 49... Re3 {[%clk 0:00:19.1]} 50. Rg4+
{[%clk 0:00:03.2]} 50... Kh3 {[%clk 0:00:18.5]} 51. Rxg5 {[%clk 0:00:03.5]}
51... Rxe2 {[%clk 0:00:19.1]} 52. Rh5+ {[%clk 0:00:04.1]} 52... Kg4 {[%clk
0:00:19.1]} 53. Rh8 {[%clk 0:00:04.6]} 53... Kg3 {[%clk 0:00:19.5]} 54. a4
{[%clk 0:00:04.7]} 1-0

[Event "*** Titled Tuesday Blitz"]
[Site "Chess.com"]
[Date "2020.04.21"]
[Round "5"]
[White "murtas73"]
[Black "SPEEDSKATER"]
[Result "0-1"]
[WhiteElo "2613"]
[BlackElo "2793"]
[TimeControl "180+1"]
[EndTime "10:58:05 PDT"]
[Termination "SPEEDSKATER won by resignation"]

1. d4 {[%clk 0:03:00.9]} 1... d5 {[%clk 0:02:59.4]} 2. c4 {[%clk 0:03:00.7]}
2... c6 {[%clk 0:02:59.3]} 3. cxd5 {[%clk 0:02:59.3]} 3... cxd5 {[%clk
0:03:00.2]} 4. Bg5 {[%clk 0:02:59.5]} 4... h6 {[%clk 0:02:48.3]} 5. Bh4 {[%clk
0:02:59]} 5... Qb6 {[%clk 0:02:48]} 6. Nc3 {[%clk 0:02:57.8]} 6... e6 {[%clk
0:02:45.1]} 7. Qd2 {[%clk 0:02:56.3]} 7... Ne7 {[%clk 0:02:34.7]} 8. f3 {[%clk
0:02:52.5]} 8... Nbc6 {[%clk 0:02:32.7]} 9. Bf2 {[%clk 0:02:50.8]} 9... Nf5
{[%clk 0:02:16.7]} 10. e3 {[%clk 0:02:48.1]} 10... Be7 {[%clk 0:02:11.5]} 11.
Bd3 {[%clk 0:02:45.9]} 11... Nd6 {[%clk 0:02:09.9]} 12. Nge2 {[%clk 0:02:46.1]}
12... Na5 {[%clk 0:02:05.2]} 13. b3 {[%clk 0:02:44.1]} 13... Nc6 {[%clk
0:01:53.6]} 14. Rc1 {[%clk 0:02:36.2]} 14... O-O {[%clk 0:01:48.8]} 15. O-O
{[%clk 0:02:34.6]} 15... Bd7 {[%clk 0:01:45.3]} 16. Na4 {[%clk 0:02:24.3]} 16...
Qd8 {[%clk 0:01:43.9]} 17. Nc5 {[%clk 0:02:21.8]} 17... Be8 {[%clk 0:01:37.7]}
18. Rc2 {[%clk 0:02:15]} 18... b6 {[%clk 0:01:32.6]} 19. Na4 {[%clk 0:02:12.3]}
19... Nb7 {[%clk 0:01:23.3]} 20. e4 {[%clk 0:02:07.5]} 20... Nb4 {[%clk
0:01:20.7]} 21. Rc3 {[%clk 0:02:05.2]} 21... Nxd3 {[%clk 0:01:19.9]} 22. Qxd3
{[%clk 0:02:04.5]} 22... Nd6 {[%clk 0:01:19]} 23. e5 {[%clk 0:02:02.6]} 23...
Bb5 {[%clk 0:01:18.1]} 24. Qc2 {[%clk 0:01:57.9]} 24... Nf5 {[%clk 0:01:17.7]}
25. Rc1 {[%clk 0:01:51.9]} 25... Ba3 {[%clk 0:01:10.8]} 26. Nb2 {[%clk
0:01:44.1]} 26... Ba6 {[%clk 0:01:02.7]} 27. Ng3 {[%clk 0:01:31.7]} 27... Ne7
{[%clk 0:00:53.5]} 28. Qb1 {[%clk 0:01:27.5]} 28... Rc8 {[%clk 0:00:41.8]} 29.
h3 {[%clk 0:01:21.7]} 29... Qd7 {[%clk 0:00:40.1]} 30. Be1 {[%clk 0:01:16.5]}
30... Rxc3 {[%clk 0:00:39.3]} 31. Bxc3 {[%clk 0:01:15.3]} 31... Rc8 {[%clk
0:00:40.2]} 32. Bd2 {[%clk 0:01:06.8]} 32... Rxc1+ {[%clk 0:00:38.6]} 33. Qxc1
{[%clk 0:01:07.4]} 33... Qc6 {[%clk 0:00:39.1]} 34. Qxc6 {[%clk 0:01:06.5]}
34... Nxc6 {[%clk 0:00:40]} 35. Na4 {[%clk 0:01:05.8]} 35... Nxd4 {[%clk
0:00:37.7]} 36. Kf2 {[%clk 0:01:03.6]} 36... Nc6 {[%clk 0:00:35.7]} 37. f4
{[%clk 0:01:01.6]} 37... Kf8 {[%clk 0:00:34]} 38. Ne2 {[%clk 0:01:00.5]} 38...
g6 {[%clk 0:00:32.2]} 39. Bc1 {[%clk 0:00:58.9]} 39... Be7 {[%clk 0:00:28.7]}
40. Be3 {[%clk 0:00:55.6]} 40... h5 {[%clk 0:00:24.3]} 41. Nd4 {[%clk
0:00:50.5]} 41... Nxd4 {[%clk 0:00:24]} 42. Bxd4 {[%clk 0:00:50]} 42... Ke8
{[%clk 0:00:23.7]} 43. g3 {[%clk 0:00:47.9]} 43... Kd7 {[%clk 0:00:23.6]} 44. h4
{[%clk 0:00:47.4]} 44... Kc6 {[%clk 0:00:23.3]} 45. Nc3 {[%clk 0:00:46.2]} 45...
Bd3 {[%clk 0:00:22.2]} 46. Ke3 {[%clk 0:00:45.7]} 46... Bf5 {[%clk 0:00:22.2]}
47. Kd2 {[%clk 0:00:43.7]} 47... Bc5 {[%clk 0:00:20.6]} 48. Ke3 {[%clk
0:00:43.6]} 48... Bc2 {[%clk 0:00:19.1]} 49. Na4 {[%clk 0:00:42.9]} 49... Bf5
{[%clk 0:00:17.1]} 50. Nc3 {[%clk 0:00:40.6]} 50... Bc2 {[%clk 0:00:17.4]} 51.
Na4 {[%clk 0:00:40.3]} 51... Bb1 {[%clk 0:00:17.8]} 52. Nc3 {[%clk 0:00:40]}
52... Bf5 {[%clk 0:00:16.1]} 53. Na4 {[%clk 0:00:39.6]} 53... Kb5 {[%clk
0:00:16.4]} 54. Nc3+ {[%clk 0:00:37.7]} 54... Kb4 {[%clk 0:00:16.8]} 55. Na4
{[%clk 0:00:32.6]} 55... Bxd4+ {[%clk 0:00:15.6]} 56. Kxd4 {[%clk 0:00:31.8]}
56... Bb1 {[%clk 0:00:16.5]} 57. Nc3 {[%clk 0:00:30.1]} 57... Bf5 {[%clk
0:00:16.8]} 58. Ne2 {[%clk 0:00:28.3]} 58... b5 {[%clk 0:00:15.5]} 59. Ke3
{[%clk 0:00:26.8]} 59... a6 {[%clk 0:00:15.5]} 60. Kd2 {[%clk 0:00:25.6]} 60...
Ka3 {[%clk 0:00:15.8]} 61. Kc3 {[%clk 0:00:23.6]} 61... b4+ {[%clk 0:00:15.7]}
62. Kd2 {[%clk 0:00:21.8]} 62... Kxa2 {[%clk 0:00:15.3]} 63. Nd4 {[%clk
0:00:22.1]} 63... Kb2 {[%clk 0:00:14.7]} 64. Ke3 {[%clk 0:00:19.3]} 64... Kc3
{[%clk 0:00:14.2]} 0-1

[Event "*** Titled Tuesday Blitz"]
[Site "Chess.com"]
[Date "2020.04.21"]
[Round "5"]
[White "eldidi20"]
[Black "Angel_Hranitel_37"]
[Result "1-0"]
[WhiteElo "2180"]
[BlackElo "2371"]
[TimeControl "180+1"]
[EndTime "10:58:05 PDT"]
[Termination "eldidi20 won by checkmate"]

1. e4 {[%clk 0:03:00.9]} 1... c5 {[%clk 0:02:57.9]} 2. Nf3 {[%clk 0:03:00.7]}
2... e6 {[%clk 0:02:56.8]} 3. d4 {[%clk 0:03:01.1]} 3... cxd4 {[%clk 0:02:57.4]}
4. Nxd4 {[%clk 0:03:01.9]} 4... Nf6 {[%clk 0:02:58.1]} 5. Nc3 {[%clk 0:03:02.1]}
5... Nc6 {[%clk 0:02:58.8]} 6. Nxc6 {[%clk 0:02:57.9]} 6... bxc6 {[%clk
0:02:58.3]} 7. Bd3 {[%clk 0:02:58]} 7... e5 {[%clk 0:02:52.6]} 8. Bg5 {[%clk
0:02:49.9]} 8... Bb4 {[%clk 0:02:51.3]} 9. O-O {[%clk 0:02:49.2]} 9... h6 {[%clk
0:02:51.1]} 10. Bh4 {[%clk 0:02:20.8]} 10... Bxc3 {[%clk 0:02:50.4]} 11. bxc3
{[%clk 0:02:20.6]} 11... O-O {[%clk 0:02:51.1]} 12. c4 {[%clk 0:01:58.7]} 12...
d6 {[%clk 0:02:48.5]} 13. Kh1 {[%clk 0:01:46.8]} 13... g5 {[%clk 0:02:36]} 14.
Bg3 {[%clk 0:01:46]} 14... c5 {[%clk 0:02:22.2]} 15. Rb1 {[%clk 0:01:41.5]}
15... Bg4 {[%clk 0:02:00.3]} 16. Be2 {[%clk 0:01:32.2]} 16... Be6 {[%clk
0:01:54.4]} 17. Qd3 {[%clk 0:01:20.3]} 17... Qc7 {[%clk 0:01:48.5]} 18. Rfd1
{[%clk 0:01:19.4]} 18... Rfd8 {[%clk 0:01:47.8]} 19. f3 {[%clk 0:00:55.5]} 19...
Rd7 {[%clk 0:01:00.3]} 20. Be1 {[%clk 0:00:52.2]} 20... Rb8 {[%clk 0:00:54.7]}
21. Rb3 {[%clk 0:00:51.8]} 21... Nh5 {[%clk 0:00:19.6]} 22. g3 {[%clk 0:00:50]}
22... Ng7 {[%clk 0:00:18.6]} 23. Rdb1 {[%clk 0:00:42.9]} 23... Rb6 {[%clk
0:00:16.4]} 24. Rxb6 {[%clk 0:00:29.1]} 24... axb6 {[%clk 0:00:17.3]} 25. Qb3
{[%clk 0:00:29.5]} 25... Qa7 {[%clk 0:00:17.7]} 26. a4 {[%clk 0:00:20.7]} 26...
Rb7 {[%clk 0:00:14.4]} 27. a5 {[%clk 0:00:17.6]} 27... b5 {[%clk 0:00:14.6]} 28.
Qa2 {[%clk 0:00:14.6]} 28... b4 {[%clk 0:00:12.4]} 29. a6 {[%clk 0:00:13.8]}
29... Rb6 {[%clk 0:00:12.8]} 30. Ra1 {[%clk 0:00:14.4]} 30... Ne8 {[%clk
0:00:13.3]} 31. Qa4 {[%clk 0:00:12.1]} 31... Nc7 {[%clk 0:00:13.1]} 32. Qb3
{[%clk 0:00:07.6]} 32... Rxa6 {[%clk 0:00:13.4]} 33. Rxa6 {[%clk 0:00:07]} 33...
Qxa6 {[%clk 0:00:14.3]} 34. Kg2 {[%clk 0:00:07.5]} 34... Bd7 {[%clk 0:00:11.9]}
35. h4 {[%clk 0:00:07.4]} 35... Ba4 {[%clk 0:00:11.9]} 36. Qa2 {[%clk
0:00:06.1]} 36... Bc6 {[%clk 0:00:07.8]} 37. Qb3 {[%clk 0:00:06]} 37... f6
{[%clk 0:00:06.1]} 38. hxg5 {[%clk 0:00:06.1]} 38... hxg5 {[%clk 0:00:06.4]} 39.
Bd2 {[%clk 0:00:06.7]} 39... Kg7 {[%clk 0:00:06.6]} 40. Kf2 {[%clk 0:00:07.1]}
40... Qa3 {[%clk 0:00:06.2]} 41. Qb1 {[%clk 0:00:07]} 41... Ba4 {[%clk
0:00:05.3]} 42. f4 {[%clk 0:00:04.1]} 42... exf4 {[%clk 0:00:04.6]} 43. gxf4
{[%clk 0:00:05]} 43... Ne6 {[%clk 0:00:04.8]} 44. fxg5 {[%clk 0:00:04.8]} 44...
fxg5 {[%clk 0:00:05.5]} 45. Qg1 {[%clk 0:00:05]} 45... Qb2 {[%clk 0:00:05.6]}
46. Bxg5 {[%clk 0:00:05.1]} 46... Nxg5 {[%clk 0:00:05.2]} 47. Qxg5+ {[%clk
0:00:05.9]} 47... Kf7 {[%clk 0:00:06.1]} 48. Bh5+ {[%clk 0:00:04.9]} 48... Ke6
{[%clk 0:00:05.1]} 49. Qf5+ {[%clk 0:00:04.7]} 49... Ke7 {[%clk 0:00:05]} 50.
Qf7+ {[%clk 0:00:04.9]} 50... Kd8 {[%clk 0:00:05.5]} 51. Qf8+ {[%clk 0:00:04.3]}
51... Kc7 {[%clk 0:00:05.2]} 52. Qe7+ {[%clk 0:00:03.7]} 52... Bd7 {[%clk
0:00:02.7]} 53. Be8 {[%clk 0:00:03.8]} 53... Qd4+ {[%clk 0:00:02.3]} 54. Kf3
{[%clk 0:00:04.3]} 54... Qe5 {[%clk 0:00:02]} 55. Qxd7+ {[%clk 0:00:04.2]} 55...
Kb6 {[%clk 0:00:02.5]} 56. Qc6+ {[%clk 0:00:04.4]} 56... Ka7 {[%clk 0:00:03.4]}
57. Bd7 {[%clk 0:00:03.3]} 57... Kb8 {[%clk 0:00:04.3]} 58. Qb6+ {[%clk
0:00:03.1]} 58... Ka8 {[%clk 0:00:04.4]} 59. Bc6# {[%clk 0:00:03.7]} 1-0

[Event "*** Titled Tuesday Blitz"]
[Site "Chess.com"]
[Date "2020.04.21"]
[Round "5"]
[White "Gentlejimmy7"]
[Black "raviteja81293"]
[Result "0-1"]
[WhiteElo "2613"]
[BlackElo "2782"]
[TimeControl "180+1"]
[EndTime "10:58:07 PDT"]
[Termination "raviteja81293 won by resignation"]

1. d4 {[%clk 0:03:00.9]} 1... d5 {[%clk 0:02:58.3]} 2. g3 {[%clk 0:03:00.1]}
2... Nf6 {[%clk 0:02:57.1]} 3. Bg2 {[%clk 0:02:59.2]} 3... c6 {[%clk 0:02:57.5]}
4. Nf3 {[%clk 0:02:58.9]} 4... Bg4 {[%clk 0:02:57.8]} 5. Ne5 {[%clk 0:02:58.7]}
5... Bh5 {[%clk 0:02:57.4]} 6. f3 {[%clk 0:02:57.4]} 6... Nfd7 {[%clk
0:02:23.9]} 7. Nd3 {[%clk 0:02:56.1]} 7... e6 {[%clk 0:02:20.2]} 8. O-O {[%clk
0:02:56.1]} 8... Be7 {[%clk 0:02:19.6]} 9. Be3 {[%clk 0:02:56.1]} 9... O-O
{[%clk 0:02:19.2]} 10. Bf2 {[%clk 0:02:56.6]} 10... c5 {[%clk 0:02:06.6]} 11. c3
{[%clk 0:02:55.8]} 11... cxd4 {[%clk 0:02:05.1]} 12. cxd4 {[%clk 0:02:51.6]}
12... Nc6 {[%clk 0:02:05.5]} 13. Nc3 {[%clk 0:02:51.5]} 13... Rc8 {[%clk
0:02:03.6]} 14. Nf4 {[%clk 0:02:51.4]} 14... Bg6 {[%clk 0:02:02.6]} 15. Nxg6
{[%clk 0:02:51.6]} 15... hxg6 {[%clk 0:02:03.5]} 16. e4 {[%clk 0:02:52.1]} 16...
Nb6 {[%clk 0:02:02.3]} 17. Rc1 {[%clk 0:02:43.3]} 17... Bf6 {[%clk 0:01:47.3]}
18. e5 {[%clk 0:02:39]} 18... Be7 {[%clk 0:01:47.1]} 19. Qe2 {[%clk 0:02:31.8]}
19... a6 {[%clk 0:01:44.8]} 20. Rfd1 {[%clk 0:02:25.5]} 20... Nc4 {[%clk
0:01:44.4]} 21. b3 {[%clk 0:02:23.6]} 21... Nb6 {[%clk 0:01:41.7]} 22. Qb2
{[%clk 0:02:13.5]} 22... Qd7 {[%clk 0:01:35.8]} 23. Bf1 {[%clk 0:02:07]} 23...
Rc7 {[%clk 0:01:34.6]} 24. a3 {[%clk 0:01:58.7]} 24... Rfc8 {[%clk 0:01:31.7]}
25. Rc2 {[%clk 0:01:53.3]} 25... Qe8 {[%clk 0:01:13.9]} 26. Rdc1 {[%clk
0:01:52.3]} 26... Qf8 {[%clk 0:01:12.8]} 27. Nb1 {[%clk 0:01:52.4]} 27... Qd8
{[%clk 0:01:13.3]} 28. Bd3 {[%clk 0:01:42.2]} 28... Bf8 {[%clk 0:01:08]} 29. Be3
{[%clk 0:01:37.3]} 29... Ne7 {[%clk 0:01:07.6]} 30. g4 {[%clk 0:01:36.3]} 30...
Nc6 {[%clk 0:01:07.8]} 31. Kg2 {[%clk 0:01:35.8]} 31... Be7 {[%clk 0:01:08]} 32.
h3 {[%clk 0:01:34.7]} 32... Na5 {[%clk 0:01:07.3]} 33. Rxc7 {[%clk 0:01:19.9]}
33... Rxc7 {[%clk 0:01:08.2]} 34. Rxc7 {[%clk 0:01:19.8]} 34... Qxc7 {[%clk
0:01:09.1]} 35. Qc2 {[%clk 0:01:20.2]} 35... Qd8 {[%clk 0:01:05.4]} 36. Bd2
{[%clk 0:01:17.9]} 36... Nc6 {[%clk 0:01:05.4]} 37. Be3 {[%clk 0:01:17.6]} 37...
Qf8 {[%clk 0:01:05.5]} 38. Qc1 {[%clk 0:01:05.8]} 38... a5 {[%clk 0:00:57.7]}
39. Kg3 {[%clk 0:01:03]} 39... a4 {[%clk 0:00:56.9]} 40. b4 {[%clk 0:01:03.3]}
40... Qd8 {[%clk 0:00:54]} 41. Nd2 {[%clk 0:00:59.2]} 41... Na7 {[%clk
0:00:52.9]} 42. Nb1 {[%clk 0:00:52.3]} 42... Bh4+ {[%clk 0:00:53]} 43. Kg2
{[%clk 0:00:52]} 43... Be7 {[%clk 0:00:51.6]} 44. Nc3 {[%clk 0:00:51.5]} 44...
Qd7 {[%clk 0:00:51.2]} 45. Qc2 {[%clk 0:00:39.9]} 45... Qc6 {[%clk 0:00:44.1]}
46. b5 {[%clk 0:00:20.8]} 46... Qc8 {[%clk 0:00:20.4]} 47. Nxa4 {[%clk 0:00:21]}
47... Nxa4 {[%clk 0:00:20.9]} 48. Qxa4 {[%clk 0:00:20.6]} 48... Qc3 {[%clk
0:00:21.8]} 49. Qc2 {[%clk 0:00:18.9]} 49... Qxa3 {[%clk 0:00:21.8]} 50. Qc7
{[%clk 0:00:18.7]} 50... Qxd3 {[%clk 0:00:21.4]} 51. Qxe7 {[%clk 0:00:15.6]}
51... Qxe3 {[%clk 0:00:21.6]} 52. Qxb7 {[%clk 0:00:16.1]} 52... Qe2+ {[%clk
0:00:21.3]} 53. Kg3 {[%clk 0:00:15.9]} 53... Nxb5 {[%clk 0:00:21.7]} 54. Qc8+
{[%clk 0:00:14.9]} 54... Kh7 {[%clk 0:00:21.6]} 55. Qe8 {[%clk 0:00:15.4]} 55...
Qe1+ {[%clk 0:00:21.8]} 56. Kg2 {[%clk 0:00:14.7]} 56... Qe2+ {[%clk 0:00:21.9]}
57. Kg3 {[%clk 0:00:14.5]} 57... Nxd4 {[%clk 0:00:22.3]} 58. Qxf7 {[%clk
0:00:15.1]} 58... Qxe5+ {[%clk 0:00:22.2]} 59. f4 {[%clk 0:00:14.6]} 59... Qe3+
{[%clk 0:00:21.8]} 60. Kh4 {[%clk 0:00:13.9]} 60... Nf3+ {[%clk 0:00:21.8]} 61.
Kg3 {[%clk 0:00:13.2]} 61... Ne5+ {[%clk 0:00:22.3]} 0-1

[Event "*** Titled Tuesday Blitz"]
[Site "Chess.com"]
[Date "2020.04.21"]
[Round "5"]
[White "kungmongmanh"]
[Black "ApacheSVD"]
[Result "1-0"]
[WhiteElo "2592"]
[BlackElo "2418"]
[TimeControl "180+1"]
[EndTime "10:58:08 PDT"]
[Termination "kungmongmanh won by resignation"]

1. d4 {[%clk 0:03:00.9]} 1... Nf6 {[%clk 0:02:58.8]} 2. c4 {[%clk 0:03:00.9]}
2... c5 {[%clk 0:02:59.3]} 3. d5 {[%clk 0:03:00.8]} 3... b5 {[%clk 0:03:00]} 4.
cxb5 {[%clk 0:03:01.2]} 4... a6 {[%clk 0:03:00.7]} 5. bxa6 {[%clk 0:03:01.7]}
5... g6 {[%clk 0:03:01.4]} 6. Nc3 {[%clk 0:03:01.8]} 6... Bg7 {[%clk 0:03:02.1]}
7. e4 {[%clk 0:03:01.6]} 7... O-O {[%clk 0:03:02.7]} 8. e5 {[%clk 0:02:55.1]}
8... Ne8 {[%clk 0:03:02]} 9. f4 {[%clk 0:02:54.6]} 9... d6 {[%clk 0:03:02.3]}
10. Nf3 {[%clk 0:02:53.8]} 10... Nd7 {[%clk 0:03:01.9]} 11. e6 {[%clk
0:02:43.8]} 11... fxe6 {[%clk 0:03:01.8]} 12. dxe6 {[%clk 0:02:44.2]} 12... Ndf6
{[%clk 0:03:02.5]} 13. Ng5 {[%clk 0:02:40.8]} 13... Qa5 {[%clk 0:01:50]} 14. Bd2
{[%clk 0:02:25.7]} 14... Qb6 {[%clk 0:01:47.1]} 15. Bc4 {[%clk 0:01:56.5]} 15...
Bxa6 {[%clk 0:01:41]} 16. Bxa6 {[%clk 0:01:54.1]} 16... Qxa6 {[%clk 0:01:41.9]}
17. Qe2 {[%clk 0:01:52.4]} 17... Nc7 {[%clk 0:01:38.6]} 18. Qxa6 {[%clk
0:01:44.6]} 18... Rxa6 {[%clk 0:01:39.5]} 19. O-O {[%clk 0:01:44.6]} 19... h6
{[%clk 0:01:35.1]} 20. Nf3 {[%clk 0:01:44.5]} 20... Nxe6 {[%clk 0:01:32.8]} 21.
Rfe1 {[%clk 0:01:44.2]} 21... Kf7 {[%clk 0:01:30.6]} 22. a4 {[%clk 0:01:35.7]}
22... Rb8 {[%clk 0:01:26]} 23. Nb5 {[%clk 0:01:35.1]} 23... Ne8 {[%clk
0:01:08.3]} 24. Bc3 {[%clk 0:01:28.2]} 24... Bxc3 {[%clk 0:01:04]} 25. bxc3
{[%clk 0:01:28.3]} 25... N8c7 {[%clk 0:01:01.2]} 26. c4 {[%clk 0:01:26.1]} 26...
Raa8 {[%clk 0:00:55.5]} 27. g3 {[%clk 0:01:21]} 27... Rb7 {[%clk 0:00:50.4]} 28.
Re2 {[%clk 0:01:09.6]} 28... Nd8 {[%clk 0:00:36.4]} 29. Rae1 {[%clk 0:01:06]}
29... Nc6 {[%clk 0:00:34.1]} 30. Rxe7+ {[%clk 0:00:56.6]} 30... Nxe7 {[%clk
0:00:32.9]} 31. Nxd6+ {[%clk 0:00:57]} 31... Kf6 {[%clk 0:00:31.4]} 32. Nxb7
{[%clk 0:00:55.8]} 32... Ne6 {[%clk 0:00:23.2]} 33. a5 {[%clk 0:00:53.3]} 33...
Ra7 {[%clk 0:00:22.7]} 34. Nd6 {[%clk 0:00:47.1]} 34... Rxa5 {[%clk 0:00:17.3]}
35. Ne5 {[%clk 0:00:37.9]} 35... Nf5 {[%clk 0:00:15.3]} 36. Ne4+ {[%clk
0:00:19.5]} 36... Kg7 {[%clk 0:00:13.5]} 37. Rb1 {[%clk 0:00:18.7]} 37... Ra7
{[%clk 0:00:11.3]} 38. Rb6 {[%clk 0:00:17.1]} 38... Re7 {[%clk 0:00:08.7]} 39.
Nc6 {[%clk 0:00:14.9]} 39... Rf7 {[%clk 0:00:06.7]} 40. Ne5 {[%clk 0:00:13.2]}
40... Re7 {[%clk 0:00:06.2]} 41. Ra6 {[%clk 0:00:10.6]} 41... g5 {[%clk
0:00:04.2]} 42. Nc6 {[%clk 0:00:06.8]} 42... Rf7 {[%clk 0:00:03.6]} 43. Ne5
{[%clk 0:00:06.6]} 43... Re7 {[%clk 0:00:03.1]} 44. fxg5 {[%clk 0:00:07]} 44...
hxg5 {[%clk 0:00:03.1]} 45. Nc6 {[%clk 0:00:06.9]} 45... Rf7 {[%clk 0:00:03.3]}
46. Nd2 {[%clk 0:00:05.9]} 46... Ned4 {[%clk 0:00:03.2]} 47. Ne5 {[%clk
0:00:05.9]} 47... Re7 {[%clk 0:00:03.2]} 48. Ndf3 {[%clk 0:00:05.7]} 48... Nxf3+
{[%clk 0:00:01.7]} 49. Nxf3 {[%clk 0:00:06.6]} 49... g4 {[%clk 0:00:02.4]} 50.
Nh4 {[%clk 0:00:05.1]} 50... Nxh4 {[%clk 0:00:01.5]} 51. gxh4 {[%clk 0:00:06]}
51... Re4 {[%clk 0:00:02.3]} 52. Ra4 {[%clk 0:00:05.5]} 52... Re2 {[%clk
0:00:02]} 53. Ra5 {[%clk 0:00:04.8]} 53... Kg6 {[%clk 0:00:02.6]} 54. Rxc5
{[%clk 0:00:04.9]} 54... Rc2 {[%clk 0:00:03.3]} 55. Rg5+ {[%clk 0:00:05.2]}
55... Kf6 {[%clk 0:00:01.9]} 56. Rxg4 {[%clk 0:00:06.1]} 56... Kf5 {[%clk
0:00:02.8]} 57. h3 {[%clk 0:00:05.6]} 57... Kf6 {[%clk 0:00:01.8]} 58. h5 {[%clk
0:00:05.7]} 58... Kf5 {[%clk 0:00:02]} 59. h6 {[%clk 0:00:05.8]} 59... Ra2
{[%clk 0:00:02.1]} 60. h7 {[%clk 0:00:05.8]} 60... Ra8 {[%clk 0:00:02.7]} 61.
Rg8 {[%clk 0:00:06.3]} 1-0